[Event "Titled Tuesday Blitz July 18 Early 2023"]
[White "Koshulyan, Egor A."]
[Black "Aravindh, Chithambaram VR."]
[WhiteFideId "24237000"]
[BlackFideId "5072786"]
[WhiteElo "2692"]
[BlackElo "2944"]
[Result "0-1"]
[Round "8"]
[TimeControl "180+2"]
[Date "2023.07.18"]
[WhiteClock "0:00:09"]
[BlackClock "0:01:52"]
[Board "19"]

1. e4 {[%clk 0:03:00]}  c6 {[%clk 0:02:54]} 2. d4 {[%clk 0:03:00]}  d5 {[%clk 0:02:55]} 3. exd5 {[%clk 0:03:01]}  cxd5 {[%clk 0:02:55]} 4. Bd3 {[%clk 0:03:01]}  Nc6 {[%clk 0:02:55]} 5. c3 {[%clk 0:03:02]}  g6 {[%clk 0:02:49]} 6. h3 {[%clk 0:03:00]}  Bf5 {[%clk 0:02:50]} 7. Nf3 {[%clk 0:03:01]}  Bxd3 {[%clk 0:02:49]} 8. Qxd3 {[%clk 0:03:02]}  Bg7 {[%clk 0:02:50]} 9. O-O {[%clk 0:03:02]}  e6 {[%clk 0:02:49]} 10. Bf4 {[%clk 0:03:03]}  Nge7 {[%clk 0:02:50]} 11. Nbd2 {[%clk 0:03:03]}  O-O {[%clk 0:02:50]} 12. Rfe1 {[%clk 0:03:00]}  a6 {[%clk 0:02:50]} 13. Nb3 {[%clk 0:02:57]}  Nf5 {[%clk 0:02:49]} 14. Nc5 {[%clk 0:02:42]}  b6 {[%clk 0:02:49]} 15. Nxa6 {[%clk 0:02:41]}  Qc8 {[%clk 0:02:45]} 16. Nc7 {[%clk 0:02:40]}  Ra5 {[%clk 0:02:42]} 17. Nb5 {[%clk 0:02:39]}  Qa6 {[%clk 0:02:41]} 18. a4 {[%clk 0:02:34]}  Rxa4 {[%clk 0:02:41]} 19. Rxa4 {[%clk 0:02:35]}  Qxa4 {[%clk 0:02:42]} 20. Na3 {[%clk 0:02:30]}  Ra8 {[%clk 0:02:35]} 21. Nd2 {[%clk 0:02:18]}  Bf8 {[%clk 0:02:21]} 22. Nc2 {[%clk 0:02:11]}  Qa6 {[%clk 0:02:21]} 23. Qxa6 {[%clk 0:01:13]}  Rxa6 {[%clk 0:02:22]} 24. Ra1 {[%clk 0:01:13]}  Rxa1+ {[%clk 0:02:22]} 25. Nxa1 {[%clk 0:01:14]}  b5 {[%clk 0:02:22]} 26. b4 {[%clk 0:01:09]}  f6 {[%clk 0:02:12]} 27. Nf3 {[%clk 0:01:00]}  Bd6 {[%clk 0:02:10]} 28. Bd2 {[%clk 0:00:34]}  e5 {[%clk 0:02:06]} 29. dxe5 {[%clk 0:00:34]}  fxe5 {[%clk 0:02:07]} 30. Nc2 {[%clk 0:00:35]}  e4 {[%clk 0:02:06]} 31. Ng5 {[%clk 0:00:32]}  Ne5 {[%clk 0:02:04]} 32. Na3 {[%clk 0:00:29]}  Be7 {[%clk 0:01:59]} 33. Nxb5 {[%clk 0:00:24]}  e3 {[%clk 0:01:58]} 34. fxe3 {[%clk 0:00:16]}  Bxg5 {[%clk 0:01:58]} 35. Nc7 {[%clk 0:00:13]}  Bxe3+ {[%clk 0:01:53]} 36. Bxe3 {[%clk 0:00:14]}  Nxe3 {[%clk 0:01:54]} 37. b5 {[%clk 0:00:14]}  N5c4 {[%clk 0:01:54]} 38. Kf2 {[%clk 0:00:14]}  Nd1+ {[%clk 0:01:54]} 39. Kf3 {[%clk 0:00:14]}  Nxc3 {[%clk 0:01:55]} 40. Kf4 {[%clk 0:00:13]}  Kf7 {[%clk 0:01:54]} 41. g4 {[%clk 0:00:10]}  d4 {[%clk 0:01:52]} 42. b6 {[%clk 0:00:09]} 0-1


[Site "https://www.chess.com"]

[Event "Titled Tuesday Blitz July 18 Early 2023"]
[White "Ovchinnikov, Vsevolod"]
[Black "Jones, Gawain C B"]
[WhiteFideId "24176842"]
[BlackFideId "409561"]
[WhiteElo "2655"]
[BlackElo "2920"]
[Result "0-1"]
[Round "8"]
[TimeControl "180+2"]
[Date "2023.07.18"]
[WhiteClock "0:00:05"]
[BlackClock "0:00:05"]
[Board "20"]

1. d4 {[%clk 0:03:00]}  Nf6 {[%clk 0:03:00]} 2. c4 {[%clk 0:03:01]}  g6 {[%clk 0:03:00]} 3. Nc3 {[%clk 0:03:01]}  Bg7 {[%clk 0:03:01]} 4. e4 {[%clk 0:03:01]}  d6 {[%clk 0:03:01]} 5. Nf3 {[%clk 0:03:01]}  O-O {[%clk 0:03:02]} 6. h3 {[%clk 0:03:02]}  e5 {[%clk 0:03:00]} 7. d5 {[%clk 0:03:02]}  a5 {[%clk 0:02:59]} 8. g4 {[%clk 0:03:02]}  Na6 {[%clk 0:02:58]} 9. Be3 {[%clk 0:03:03]}  Nd7 {[%clk 0:02:56]} 10. a3 {[%clk 0:02:58]}  Nb6 {[%clk 0:02:54]} 11. Rg1 {[%clk 0:02:57]}  Kh8 {[%clk 0:02:53]} 12. h4 {[%clk 0:02:43]}  f5 {[%clk 0:02:52]} 13. gxf5 {[%clk 0:02:43]}  gxf5 {[%clk 0:02:52]} 14. exf5 {[%clk 0:02:42]}  Bxf5 {[%clk 0:02:51]} 15. Ng5 {[%clk 0:02:42]}  Nc5 {[%clk 0:02:18]} 16. Bxc5 {[%clk 0:01:18]}  dxc5 {[%clk 0:02:18]} 17. Bd3 {[%clk 0:01:18]}  e4 {[%clk 0:02:18]} 18. Ncxe4 {[%clk 0:01:18]}  Bxb2 {[%clk 0:02:00]} 19. Ra2 {[%clk 0:01:18]}  Bd4 {[%clk 0:01:57]} 20. Qh5 {[%clk 0:01:01]}  Qe8 {[%clk 0:01:50]} 21. Qxe8 {[%clk 0:01:01]}  Raxe8 {[%clk 0:01:50]} 22. Re2 {[%clk 0:01:02]}  Bxe4 {[%clk 0:01:32]} 23. Nxe4 {[%clk 0:00:59]}  Rf3 {[%clk 0:01:30]} 24. Kd2 {[%clk 0:00:43]}  Nd7 {[%clk 0:01:16]} 25. Rg3 {[%clk 0:00:29]}  Ne5 {[%clk 0:01:10]} 26. Ng5 {[%clk 0:00:16]}  Rxf2 {[%clk 0:00:51]} 27. Rxf2 {[%clk 0:00:16]}  Bxf2 {[%clk 0:00:51]} 28. Rg2 {[%clk 0:00:15]}  Bxh4 {[%clk 0:00:48]} 29. Ne6 {[%clk 0:00:15]}  Nf3+ {[%clk 0:00:32]} 30. Ke3 {[%clk 0:00:05]}  Nd4 {[%clk 0:00:30]} 31. Rg4 {[%clk 0:00:02]}  Nxe6 {[%clk 0:00:17]} 32. dxe6 {[%clk 0:00:03]}  Rxe6+ {[%clk 0:00:16]} 33. Be4 {[%clk 0:00:03]}  Bf6 {[%clk 0:00:15]} 34. Kf3 {[%clk 0:00:03]}  c6 {[%clk 0:00:14]} 35. Rf4 {[%clk 0:00:03]}  h6 {[%clk 0:00:11]} 36. Rf5 {[%clk 0:00:03]}  Be7 {[%clk 0:00:09]} 37. Rf7 {[%clk 0:00:03]}  Kg8 {[%clk 0:00:10]} 38. Rf5 {[%clk 0:00:02]}  Kg7 {[%clk 0:00:10]} 39. Rf4 {[%clk 0:00:02]}  Bf6 {[%clk 0:00:10]} 40. Rf5 {[%clk 0:00:02]}  Be5 {[%clk 0:00:10]} 41. a4 {[%clk 0:00:02]}  Bd4 {[%clk 0:00:09]} 42. Rf4 {[%clk 0:00:02]}  h5 {[%clk 0:00:07]} 43. Rf5 {[%clk 0:00:02]}  h4 {[%clk 0:00:07]} 44. Rg5+ {[%clk 0:00:02]}  Kf7 {[%clk 0:00:06]} 45. Rh5 {[%clk 0:00:02]}  Rf6+ {[%clk 0:00:06]} 46. Bf5 {[%clk 0:00:03]}  Ke7 {[%clk 0:00:04]} 47. Rh7+ {[%clk 0:00:02]}  Kd6 {[%clk 0:00:04]} 48. Ke4 {[%clk 0:00:03]}  Rxf5 {[%clk 0:00:03]} 49. Kxf5 {[%clk 0:00:04]}  Bf2 {[%clk 0:00:03]} 50. Rh6+ {[%clk 0:00:04]}  Kc7 {[%clk 0:00:03]} 51. Ke6 {[%clk 0:00:04]}  b5 {[%clk 0:00:03]} 52. cxb5 {[%clk 0:00:05]}  cxb5 {[%clk 0:00:04]} 53. axb5 {[%clk 0:00:06]}  Kb6 {[%clk 0:00:04]} 54. Kd5+ {[%clk 0:00:06]}  Kxb5 {[%clk 0:00:04]} 55. Rh8 {[%clk 0:00:05]}  Bg3 {[%clk 0:00:04]} 56. Rh7 {[%clk 0:00:05]}  Kb4 {[%clk 0:00:02]} 57. Rb7+ {[%clk 0:00:05]}  Kc3 {[%clk 0:00:02]} 58. Kxc5 {[%clk 0:00:05]}  a4 {[%clk 0:00:03]} 59. Ra7 {[%clk 0:00:05]}  Bf2+ {[%clk 0:00:03]} 60. Kb5 {[%clk 0:00:05]}  Bxa7 {[%clk 0:00:04]} 61. Kxa4 {[%clk 0:00:05]}  h3 {[%clk 0:00:05]} 0-1


[Site "https://www.chess.com"]

[Event "Titled Tuesday Blitz July 18 Early 2023"]
[White "Anton Guijarro, David"]
[Black "Shuvalova, Polina"]
[WhiteFideId "2285525"]
[BlackFideId "24171760"]
[WhiteElo "2920"]
[BlackElo "2666"]
[Result "1-0"]
[Round "8"]
[TimeControl "180+2"]
[Date "2023.07.18"]
[WhiteClock "0:00:12"]
[BlackClock "0:00:15"]
[Board "21"]

1. Nf3 {[%clk 0:03:00]}  Nf6 {[%clk 0:02:59]} 2. b3 {[%clk 0:03:01]}  d5 {[%clk 0:02:59]} 3. Bb2 {[%clk 0:03:02]}  e6 {[%clk 0:02:59]} 4. c4 {[%clk 0:03:01]}  c5 {[%clk 0:02:58]} 5. cxd5 {[%clk 0:02:58]}  exd5 {[%clk 0:02:59]} 6. g3 {[%clk 0:02:59]}  Nc6 {[%clk 0:02:59]} 7. Bg2 {[%clk 0:03:00]}  d4 {[%clk 0:02:54]} 8. O-O {[%clk 0:03:00]}  Bd6 {[%clk 0:02:51]} 9. Na3 {[%clk 0:03:00]}  O-O {[%clk 0:02:51]} 10. Nc4 {[%clk 0:02:59]}  Bc7 {[%clk 0:02:48]} 11. e3 {[%clk 0:02:59]}  Re8 {[%clk 0:02:39]} 12. exd4 {[%clk 0:02:56]}  cxd4 {[%clk 0:02:37]} 13. Re1 {[%clk 0:02:46]}  Bg4 {[%clk 0:02:31]} 14. Rxe8+ {[%clk 0:02:45]}  Qxe8 {[%clk 0:02:30]} 15. h3 {[%clk 0:02:43]}  Bh5 {[%clk 0:02:22]} 16. g4 {[%clk 0:02:42]}  Bg6 {[%clk 0:02:22]} 17. Nxd4 {[%clk 0:02:39]}  Nxd4 {[%clk 0:02:20]} 18. Bxd4 {[%clk 0:02:40]}  Rd8 {[%clk 0:02:20]} 19. Bxf6 {[%clk 0:02:20]}  gxf6 {[%clk 0:02:19]} 20. Bxb7 {[%clk 0:02:19]}  Rd3 {[%clk 0:02:08]} 21. Bg2 {[%clk 0:02:10]}  Qd7 {[%clk 0:01:51]} 22. Qe2 {[%clk 0:01:34]}  Qd4 {[%clk 0:01:46]} 23. Re1 {[%clk 0:01:34]}  Qf4 {[%clk 0:01:44]} 24. Qe7 {[%clk 0:01:23]}  Rxh3 {[%clk 0:01:19]} 25. Re3 {[%clk 0:00:39]}  Rh4 {[%clk 0:00:53]} 26. Rg3 {[%clk 0:00:32]}  Kg7 {[%clk 0:00:47]} 27. Ne3 {[%clk 0:00:23]}  Bb6 {[%clk 0:00:39]} 28. Bd5 {[%clk 0:00:12]}  Bxe3 {[%clk 0:00:20]} 29. dxe3 {[%clk 0:00:13]}  Qb4 {[%clk 0:00:15]} 30. Qxb4 {[%clk 0:00:12]} 1-0


[Site "https://www.chess.com"]

[Event "Titled Tuesday Blitz July 18 Early 2023"]
[White "Suleymanli, Suleyman"]
[Black "Ter-Sahakyan, Samvel"]
[WhiteFideId "13416375"]
[BlackFideId "13302531"]
[WhiteElo "2637"]
[BlackElo "2847"]
[Result "0-1"]
[Round "8"]
[TimeControl "180+2"]
[Date "2023.07.18"]
[WhiteClock "0:01:03"]
[BlackClock "0:00:11"]
[Board "24"]

1. Nf3 {[%clk 0:03:00]}  d5 {[%clk 0:02:59]} 2. g3 {[%clk 0:03:01]}  b6 {[%clk 0:02:59]} 3. Bg2 {[%clk 0:03:02]}  Bb7 {[%clk 0:02:59]} 4. O-O {[%clk 0:03:03]}  e6 {[%clk 0:02:59]} 5. d4 {[%clk 0:03:03]}  Nf6 {[%clk 0:02:58]} 6. c4 {[%clk 0:03:04]}  dxc4 {[%clk 0:02:58]} 7. Qa4+ {[%clk 0:03:01]}  Nbd7 {[%clk 0:02:56]} 8. Qxc4 {[%clk 0:03:01]}  Bd6 {[%clk 0:02:47]} 9. Nc3 {[%clk 0:03:01]}  O-O {[%clk 0:02:47]} 10. Bf4 {[%clk 0:02:59]}  Rc8 {[%clk 0:02:45]} 11. Rfe1 {[%clk 0:02:57]}  a6 {[%clk 0:02:43]} 12. e4 {[%clk 0:02:57]}  Bxf4 {[%clk 0:02:43]} 13. gxf4 {[%clk 0:02:57]}  c5 {[%clk 0:02:43]} 14. e5 {[%clk 0:02:51]}  Nd5 {[%clk 0:02:34]} 15. Ng5 {[%clk 0:02:48]}  h6 {[%clk 0:02:28]} 16. Nh3 {[%clk 0:02:40]}  b5 {[%clk 0:02:16]} 17. Qd3 {[%clk 0:02:38]}  Nb4 {[%clk 0:01:50]} 18. Qd2 {[%clk 0:02:32]}  Bxg2 {[%clk 0:01:49]} 19. Kxg2 {[%clk 0:02:31]}  Qh4 {[%clk 0:01:37]} 20. Ne4 {[%clk 0:02:25]}  Nd5 {[%clk 0:01:21]} 21. Ng3 {[%clk 0:02:17]}  cxd4 {[%clk 0:01:18]} 22. Qxd4 {[%clk 0:02:18]}  Rc4 {[%clk 0:01:18]} 23. Qd2 {[%clk 0:02:14]}  N7b6 {[%clk 0:00:44]} 24. Re4 {[%clk 0:02:01]}  Rfc8 {[%clk 0:00:43]} 25. b3 {[%clk 0:01:45]}  Rxe4 {[%clk 0:00:35]} 26. Nxe4 {[%clk 0:01:46]}  Nc3 {[%clk 0:00:28]} 27. Ng3 {[%clk 0:01:39]}  Nbd5 {[%clk 0:00:27]} 28. Rc1 {[%clk 0:01:38]}  b4 {[%clk 0:00:28]} 29. Nf1 {[%clk 0:01:15]}  a5 {[%clk 0:00:23]} 30. Ng3 {[%clk 0:01:10]}  Ra8 {[%clk 0:00:21]} 31. f5 {[%clk 0:01:05]}  exf5 {[%clk 0:00:19]} 32. Nxf5 {[%clk 0:01:06]}  Qe4+ {[%clk 0:00:18]} 33. f3 {[%clk 0:01:03]}  Qxf5 {[%clk 0:00:18]} 34. Rg1 {[%clk 0:01:03]}  Qxe5 {[%clk 0:00:17]} 35. Kh1 {[%clk 0:01:04]}  Qe3 {[%clk 0:00:14]} 36. Qg2 {[%clk 0:01:05]}  Qe5 {[%clk 0:00:13]} 37. Nf2 {[%clk 0:01:03]}  Nf4 {[%clk 0:00:10]} 38. Qg4 {[%clk 0:00:58]}  Rd8 {[%clk 0:00:10]} 39. h3 {[%clk 0:00:51]}  Nce2 {[%clk 0:00:10]} 40. Ne4 {[%clk 0:00:47]}  Nxg1 {[%clk 0:00:09]} 41. Kxg1 {[%clk 0:00:46]}  Ne6 {[%clk 0:00:09]} 42. h4 {[%clk 0:00:43]}  Rd1+ {[%clk 0:00:09]} 43. Kg2 {[%clk 0:00:44]}  Qb2+ {[%clk 0:00:09]} 44. Nf2 {[%clk 0:00:44]}  Rd2 {[%clk 0:00:09]} 45. Qg3 {[%clk 0:00:45]}  Rxf2+ {[%clk 0:00:09]} 46. Qxf2 {[%clk 0:00:45]}  Qxf2+ {[%clk 0:00:09]} 47. Kxf2 {[%clk 0:00:46]}  g5 {[%clk 0:00:09]} 48. hxg5 {[%clk 0:00:46]}  Nxg5 {[%clk 0:00:10]} 49. Ke3 {[%clk 0:00:47]}  Kg7 {[%clk 0:00:10]} 50. Kd4 {[%clk 0:00:48]}  h5 {[%clk 0:00:10]} 51. Kc5 {[%clk 0:00:49]}  h4 {[%clk 0:00:11]} 52. Kb5 {[%clk 0:00:49]}  h3 {[%clk 0:00:11]} 53. Kxa5 {[%clk 0:00:50]}  h2 {[%clk 0:00:12]} 54. Kxb4 {[%clk 0:00:51]}  h1=Q {[%clk 0:00:12]} 55. f4 {[%clk 0:00:52]}  Qe4+ {[%clk 0:00:12]} 56. Ka5 {[%clk 0:00:52]}  Qxf4 {[%clk 0:00:13]} 57. b4 {[%clk 0:00:53]}  Ne6 {[%clk 0:00:13]} 58. a4 {[%clk 0:00:54]}  Qc7+ {[%clk 0:00:12]} 59. Kb5 {[%clk 0:00:54]}  Nd4+ {[%clk 0:00:11]} 60. Ka6 {[%clk 0:00:55]}  Qc4+ {[%clk 0:00:10]} 61. b5 {[%clk 0:00:55]}  Qxa4+ {[%clk 0:00:10]} 62. Kb6 {[%clk 0:00:56]}  Qxb5+ {[%clk 0:00:11]} 63. Kc7 {[%clk 0:00:57]}  Qd5 {[%clk 0:00:11]} 64. Kb6 {[%clk 0:00:56]}  f5 {[%clk 0:00:11]} 65. Ka7 {[%clk 0:00:57]}  f4 {[%clk 0:00:11]} 66. Kb6 {[%clk 0:00:58]}  f3 {[%clk 0:00:12]} 67. Kc7 {[%clk 0:00:59]}  f2 {[%clk 0:00:12]} 68. Kb6 {[%clk 0:01:00]}  f1=Q {[%clk 0:00:12]} 69. Ka7 {[%clk 0:01:00]}  Qa1+ {[%clk 0:00:10]} 70. Kb6 {[%clk 0:01:01]}  Qb2+ {[%clk 0:00:11]} 71. Kc7 {[%clk 0:01:02]}  Qc3+ {[%clk 0:00:11]} 72. Kb6 {[%clk 0:01:02]}  Qdb3+ {[%clk 0:00:11]} 73. Ka7 {[%clk 0:01:03]}  Qa1# {[%clk 0:00:11]} 0-1


[Site "https://www.chess.com"]

[Event "Titled Tuesday Blitz July 18 Early 2023"]
[White "Garcia Blanco, Omar"]
[Black "Elsa167"]
[WhiteFideId "2287153"]
[WhiteElo "2620"]
[BlackElo "2797"]
[Result "1-0"]
[Round "8"]
[TimeControl "180+2"]
[Date "2023.07.18"]
[WhiteClock "0:00:12"]
[BlackClock "0:00:00"]
[Board "26"]

1. e4 {[%clk 0:03:00]}  c6 {[%clk 0:03:00]} 2. d4 {[%clk 0:03:00]}  d5 {[%clk 0:03:00]} 3. exd5 {[%clk 0:03:01]}  cxd5 {[%clk 0:03:01]} 4. Bd3 {[%clk 0:03:02]}  Nc6 {[%clk 0:03:02]} 5. c3 {[%clk 0:03:03]}  Nf6 {[%clk 0:03:02]} 6. h3 {[%clk 0:03:03]}  g6 {[%clk 0:03:02]} 7. Nf3 {[%clk 0:03:03]}  Bf5 {[%clk 0:03:02]} 8. Be2 {[%clk 0:03:04]}  e6 {[%clk 0:02:59]} 9. O-O {[%clk 0:03:01]}  Bd6 {[%clk 0:02:56]} 10. Re1 {[%clk 0:02:59]}  Ne4 {[%clk 0:02:53]} 11. Nbd2 {[%clk 0:02:44]}  h6 {[%clk 0:02:45]} 12. Nf1 {[%clk 0:02:29]}  g5 {[%clk 0:02:44]} 13. Ne3 {[%clk 0:02:22]}  Bg6 {[%clk 0:02:41]} 14. c4 {[%clk 0:02:16]}  dxc4 {[%clk 0:02:23]} 15. Nxc4 {[%clk 0:02:06]}  Bb4 {[%clk 0:02:21]} 16. Rf1 {[%clk 0:02:05]}  O-O {[%clk 0:01:59]} 17. Nce5 {[%clk 0:02:03]}  Nxe5 {[%clk 0:01:59]} 18. Nxe5 {[%clk 0:02:04]}  Bf5 {[%clk 0:01:54]} 19. Bf3 {[%clk 0:02:00]}  Bd6 {[%clk 0:01:35]} 20. Ng4 {[%clk 0:01:56]}  Kg7 {[%clk 0:01:21]} 21. Qe2 {[%clk 0:01:44]}  Nf6 {[%clk 0:01:20]} 22. Bxb7 {[%clk 0:01:12]}  Rb8 {[%clk 0:01:21]} 23. Bf3 {[%clk 0:01:12]}  Bc7 {[%clk 0:01:09]} 24. Be3 {[%clk 0:01:09]}  Qd6 {[%clk 0:01:02]} 25. g3 {[%clk 0:00:58]}  Ne4 {[%clk 0:00:52]} 26. Bxe4 {[%clk 0:00:38]}  Bxe4 {[%clk 0:00:53]} 27. Bxg5 {[%clk 0:00:39]}  hxg5 {[%clk 0:00:22]} 28. Qxe4 {[%clk 0:00:39]}  f5 {[%clk 0:00:18]} 29. Qe5+ {[%clk 0:00:40]}  Qxe5 {[%clk 0:00:18]} 30. Nxe5 {[%clk 0:00:40]}  Rxb2 {[%clk 0:00:18]} 31. Nd3 {[%clk 0:00:38]}  Rd2 {[%clk 0:00:12]} 32. Nc5 {[%clk 0:00:35]}  Kf7 {[%clk 0:00:10]} 33. Rfd1 {[%clk 0:00:33]}  Rxd1+ {[%clk 0:00:09]} 34. Rxd1 {[%clk 0:00:34]}  Rd8 {[%clk 0:00:08]} 35. Kf1 {[%clk 0:00:30]}  Bb6 {[%clk 0:00:08]} 36. Nb3 {[%clk 0:00:30]}  e5 {[%clk 0:00:05]} 37. d5 {[%clk 0:00:26]}  e4 {[%clk 0:00:05]} 38. Ke2 {[%clk 0:00:22]}  Kf6 {[%clk 0:00:06]} 39. f3 {[%clk 0:00:20]}  Ke5 {[%clk 0:00:06]} 40. fxe4 {[%clk 0:00:14]}  fxe4 {[%clk 0:00:06]} 41. Nd2 {[%clk 0:00:13]}  Rf8 {[%clk 0:00:00]} 42. Nc4+ {[%clk 0:00:12]} 1-0


[Site "https://www.chess.com"]

[Event "Titled Tuesday Blitz July 18 Early 2023"]
[White "Krstulovic, Alex"]
[Black "Dzhumagaliev, Yan"]
[WhiteFideId "760056"]
[BlackFideId "24100110"]
[WhiteElo "2609"]
[BlackElo "2759"]
[Result "0-1"]
[Round "8"]
[TimeControl "180+2"]
[Date "2023.07.18"]
[WhiteClock "0:00:06"]
[BlackClock "0:00:24"]
[Board "30"]

1. d4 {[%clk 0:03:00]}  h5 {[%clk 0:02:59]} 2. Nf3 {[%clk 0:02:52]}  h4 {[%clk 0:03:00]} 3. e4 {[%clk 0:02:52]}  c6 {[%clk 0:03:00]} 4. Nc3 {[%clk 0:02:51]}  d5 {[%clk 0:03:00]} 5. exd5 {[%clk 0:02:51]}  cxd5 {[%clk 0:03:01]} 6. Ne5 {[%clk 0:02:52]}  Nc6 {[%clk 0:03:01]} 7. Bb5 {[%clk 0:02:50]}  Bd7 {[%clk 0:03:01]} 8. Nxd7 {[%clk 0:02:30]}  Qxd7 {[%clk 0:03:02]} 9. Bf4 {[%clk 0:02:30]}  h3 {[%clk 0:02:58]} 10. Qf3 {[%clk 0:02:26]}  hxg2 {[%clk 0:02:39]} 11. Qxg2 {[%clk 0:02:26]}  e6 {[%clk 0:02:38]} 12. O-O-O {[%clk 0:02:26]}  a6 {[%clk 0:02:36]} 13. Ba4 {[%clk 0:02:24]}  b5 {[%clk 0:02:14]} 14. Bb3 {[%clk 0:02:23]}  Nge7 {[%clk 0:02:04]} 15. Rhe1 {[%clk 0:02:19]}  O-O-O {[%clk 0:01:58]} 16. Qf1 {[%clk 0:02:09]}  Na5 {[%clk 0:01:54]} 17. Kb1 {[%clk 0:02:07]}  Nec6 {[%clk 0:01:45]} 18. a4 {[%clk 0:01:55]}  Na7 {[%clk 0:01:24]} 19. Re3 {[%clk 0:01:19]}  Nc4 {[%clk 0:01:21]} 20. Bxc4 {[%clk 0:01:17]}  bxc4 {[%clk 0:01:22]} 21. b3 {[%clk 0:01:05]}  Qb7 {[%clk 0:01:19]} 22. Ka2 {[%clk 0:01:00]}  cxb3+ {[%clk 0:01:08]} 23. cxb3 {[%clk 0:01:00]}  Nc6 {[%clk 0:01:09]} 24. Rc1 {[%clk 0:00:56]}  Kd7 {[%clk 0:01:05]} 25. Qg2 {[%clk 0:00:44]}  Nb4+ {[%clk 0:00:57]} 26. Kb1 {[%clk 0:00:42]}  Rc8 {[%clk 0:00:57]} 27. Qf3 {[%clk 0:00:33]}  Be7 {[%clk 0:00:43]} 28. Be5 {[%clk 0:00:33]}  f6 {[%clk 0:00:39]} 29. Bg3 {[%clk 0:00:32]}  Rc6 {[%clk 0:00:39]} 30. Rce1 {[%clk 0:00:26]}  Rhc8 {[%clk 0:00:35]} 31. Nxd5 {[%clk 0:00:23]}  Nxd5 {[%clk 0:00:32]} 32. Qxd5+ {[%clk 0:00:23]}  Ke8 {[%clk 0:00:29]} 33. Rxe6 {[%clk 0:00:23]}  Rc1+ {[%clk 0:00:29]} 34. Rxc1 {[%clk 0:00:22]}  Rxc1+ {[%clk 0:00:30]} 35. Kxc1 {[%clk 0:00:14]}  Qxd5 {[%clk 0:00:31]} 36. Re3 {[%clk 0:00:15]}  Qxd4 {[%clk 0:00:30]} 37. Kc2 {[%clk 0:00:15]}  Kf7 {[%clk 0:00:30]} 38. Rd3 {[%clk 0:00:11]}  Qe4 {[%clk 0:00:31]} 39. f3 {[%clk 0:00:09]}  Qf5 {[%clk 0:00:31]} 40. Be1 {[%clk 0:00:08]}  Bd6 {[%clk 0:00:30]} 41. Bc3 {[%clk 0:00:08]}  Bxh2 {[%clk 0:00:30]} 42. b4 {[%clk 0:00:09]}  g5 {[%clk 0:00:27]} 43. Bd4 {[%clk 0:00:09]}  Bd6 {[%clk 0:00:26]} 44. Bc3 {[%clk 0:00:07]}  Be7 {[%clk 0:00:26]} 45. Kd2 {[%clk 0:00:07]}  Qf4+ {[%clk 0:00:25]} 46. Ke2 {[%clk 0:00:07]}  Qc4 {[%clk 0:00:25]} 47. Kd2 {[%clk 0:00:07]}  Qa2+ {[%clk 0:00:25]} 48. Ke3 {[%clk 0:00:08]}  Qxa4 {[%clk 0:00:26]} 49. Rd5 {[%clk 0:00:09]}  Qb3 {[%clk 0:00:25]} 50. Kd4 {[%clk 0:00:06]}  Bxb4 {[%clk 0:00:24]} 0-1


[Site "https://www.chess.com"]

[Event "Titled Tuesday Blitz July 18 Early 2023"]
[White "Mamedov, Edgar"]
[Black "Nazari, Arad"]
[WhiteFideId "13739980"]
[BlackFideId "12577324"]
[WhiteElo "2582"]
[BlackElo "2756"]
[Result "1-0"]
[Round "8"]
[TimeControl "180+2"]
[Date "2023.07.18"]
[WhiteClock "0:00:22"]
[BlackClock "0:00:07"]
[Board "31"]

1. d4 {[%clk 0:03:00]}  Nf6 {[%clk 0:03:00]} 2. c4 {[%clk 0:02:58]}  g6 {[%clk 0:03:00]} 3. Nc3 {[%clk 0:02:58]}  d5 {[%clk 0:03:00]} 4. cxd5 {[%clk 0:02:58]}  Nxd5 {[%clk 0:03:01]} 5. e4 {[%clk 0:02:58]}  Nxc3 {[%clk 0:03:02]} 6. bxc3 {[%clk 0:02:59]}  Bg7 {[%clk 0:03:03]} 7. Bc4 {[%clk 0:03:00]}  c5 {[%clk 0:03:02]} 8. Ne2 {[%clk 0:02:59]}  O-O {[%clk 0:03:03]} 9. O-O {[%clk 0:02:58]}  Nc6 {[%clk 0:03:00]} 10. Be3 {[%clk 0:02:58]}  Bg4 {[%clk 0:03:01]} 11. f3 {[%clk 0:02:58]}  Bd7 {[%clk 0:03:01]} 12. Qd2 {[%clk 0:02:50]}  Qa5 {[%clk 0:02:53]} 13. Rab1 {[%clk 0:02:03]}  cxd4 {[%clk 0:02:50]} 14. cxd4 {[%clk 0:01:52]}  Qxd2 {[%clk 0:02:46]} 15. Bxd2 {[%clk 0:01:52]}  b6 {[%clk 0:02:35]} 16. Be3 {[%clk 0:01:47]}  Na5 {[%clk 0:02:25]} 17. Bd3 {[%clk 0:01:43]}  Rac8 {[%clk 0:02:22]} 18. Rfc1 {[%clk 0:01:43]}  Rfd8 {[%clk 0:02:17]} 19. Ba6 {[%clk 0:01:39]}  Rc6 {[%clk 0:01:41]} 20. d5 {[%clk 0:01:29]}  Rxc1+ {[%clk 0:01:39]} 21. Rxc1 {[%clk 0:01:30]}  Be5 {[%clk 0:01:39]} 22. Bf4 {[%clk 0:01:24]}  Bxf4 {[%clk 0:01:17]} 23. Nxf4 {[%clk 0:01:25]}  e6 {[%clk 0:01:04]} 24. Rc7 {[%clk 0:01:20]}  exd5 {[%clk 0:00:44]} 25. exd5 {[%clk 0:01:10]}  Ba4 {[%clk 0:00:43]} 26. Rxa7 {[%clk 0:01:07]}  g5 {[%clk 0:00:43]} 27. Nh5 {[%clk 0:01:05]}  Kf8 {[%clk 0:00:35]} 28. Nf6 {[%clk 0:00:55]}  Kg7 {[%clk 0:00:20]} 29. Nh5+ {[%clk 0:00:35]}  Kg6 {[%clk 0:00:20]} 30. g4 {[%clk 0:00:34]}  Rxd5 {[%clk 0:00:21]} 31. Ra8 {[%clk 0:00:34]}  f5 {[%clk 0:00:19]} 32. Rf8 {[%clk 0:00:28]}  fxg4 {[%clk 0:00:16]} 33. fxg4 {[%clk 0:00:29]}  Rd6 {[%clk 0:00:09]} 34. Bd3+ {[%clk 0:00:26]}  Kh6 {[%clk 0:00:10]} 35. Rf7 {[%clk 0:00:24]}  Rg6 {[%clk 0:00:06]} 36. Bxg6 {[%clk 0:00:22]}  Kxg6 {[%clk 0:00:07]} 37. Rf6# {[%clk 0:00:22]} 1-0


[Site "https://www.chess.com"]